Cogmind - Beta 13 @@@ ROGUE MODE // 2024.04.23 @ 14:41:33 Player: Kaitocain Result: Destroyed by G-34 Mercenary with Small Laser Performance ------------- Evolutions (1) 500 Regions Visited (5) 1000 Robots Destroyed (21) 105 Value Destroyed (587) 587 Prototype IDs (2) 40 Alien Tech Used (0) 0 Bonus (241) 241 TOTAL SCORE: 2473 Bonus ------- Follower Combat Kills 54 Entered Garrisons 200 Friendly Fire -13 Cogmind --------- Core Integrity 0/400 Matter 227/300 Energy 250/250 System Corruption 0% Temperature Cool (6) Movement Core (500) Ox9 Location -9/Garrison Parts ------- > --- POWER (1) -------- Ion Engine > --- PROPULSION (3) --- (None) > --- UTILITY (3) ------ Small Storage Unit Large Storage Unit > --- WEAPON (2) ------- (None) > --- INVENTORY (15) --- (None) Peak State ------------ > --- POWER ------------ Ion Engine > --- PROPULSION ------- Aluminum Leg Aluminum Leg Aluminum Leg > --- UTILITY ---------- Heat Sink Small Storage Unit > --- WEAPON ----------- Assault Rifle Assault Rifle > --- INVENTORY -------- Ion Engine Aluminum Leg Small Laser Small Laser Light Assault Rifle Grenade Launcher [Rating: 8] Favorites ----------- Power Ion Engine Engine Ion Engine Propulsion Aluminum Leg Leg Aluminum Leg Utility Small Storage Unit Device Heat Sink Storage Small Storage Unit Protection Light Armor Plating Weapon Assault Rifle Energy Gun Small Laser Ballistic Gun Assault Rifle Launcher Grenade Launcher Build | -11 -10 -10 -9 -9 -9 ------- Run | Yrd Mat Min Mat Sto Gar Slots Evolved 2 | . . . 2 . . Power . | . . . . . . Propulsion 1 | . . . 1 . . Utility 1 | . . . 1 . . Weapon . | . . . . . . Parts Attached 20 | 5 3 . . 7 5 Power 2 | 1 . . . . 1 Engine 2 | 1 . . . . 1 Core . | . . . . . . Reactor . | . . . . . . Propulsion 5 | 2 . . . 2 1 Treads . | . . . . . . Leg 5 | 2 . . . 2 1 Wheel . | . . . . . . Hover . | . . . . . . Flight . | . . . . . . Utility 5 | . 3 . . 2 . Device 1 | . 1 . . . . Storage 3 | . 2 . . 1 . Processor . | . . . . . . Hackware . | . . . . . . Protection 1 | . . . . 1 . Artifact . | . . . . . . Weapon 8 | 2 . . . 3 3 Energy Gun 4 | . . . . 3 1 Energy Cannon . | . . . . . . Ballistic Gun 3 | 2 . . . . 1 Ballistic Cannon . | . . . . . . Launcher 1 | . . . . . 1 Special Weapon . | . . . . . . Impact Weapon . | . . . . . . Slashing Weapon . | . . . . . . Piercing Weapon . | . . . . . . Special Melee Weapon . | . . . . . . Unidentified Prototypes . | . . . . . . Parts Lost 13 | . . . . 8 5 Power 1 | . . . . 1 . Propulsion 4 | . . . . 3 1 Utility 2 | . . . . 2 . Weapon 6 | . . . . 2 4 Highest Loss Streak 6 | . . . . 6 3 To Critical Strikes . | . . . . . . Average Slot Usage (%) 76 | . 91 100 77 70 47 Engine 8 | . 14 14 11 5 3 Leg 21 | . 28 28 22 23 2 Device 4 | . 5 14 11 2 . Storage 15 | . 14 14 11 14 22 Energy Gun 5 | . . . . 6 15 Ballistic Gun 18 | . 28 28 22 15 3 Naked Turns . | . . . . . . Heaviest Build 32 | 9 19 15 15 32 32 Greatest Support 30 | 20 20 20 20 30 10 Greatest Overweight (x) 10 | . . . . 9 10 Average Overweight (x) . | . . . . . 6 Largest Inventory Capacity 15 | 5 8 8 8 15 15 Average Capacity 9 | 5 7 8 8 10 15 Most Carried 8 | 5 8 8 7 8 5 Average Carried 5 | 2 5 7 7 6 3 Final Capacity 15 | 5 8 8 8 15 15 Final Carried 7 | 3 7 7 7 5 . Class Distribution -------------------- 100% | Mutant Dominant Class ---------------- Mutant | -10/Materials Mutant | -10/Mines Mutant | -9/Materials Mutant | -9/Storage Mutant | -9/Garrison Resources | -11 -10 -10 -9 -9 -9 ----------- Run | Yrd Mat Min Mat Sto Gar Matter Collected 576 | 167 78 122 . 202 7 Remotely . | . . . . . . Salvage Created 654 | . 78 51 . 389 136 Parts 49 | . 5 8 . 26 10 Haulers Intercepted . | . . . . . . Recyclers Shooed 1 | . . . . 1 . Parts Field Recycled . | . . . . . . Retrieved Matter . | . . . . . . Parts Self-Destructed . | . . . . . . Prevented . | . . . . . . Kills | -11 -10 -10 -9 -9 -9 ------- Run | Yrd Mat Min Mat Sto Gar Combat Hostiles Destroyed 20 | . 2 2 . 11 5 Guns 17 | . 2 2 . 11 2 AOE 3 | . . . . . 3 Classes Destroyed 4 | . 1 2 . 1 . Tunneler 1 | . . 1 . . . Swarmer 7 | . . 2 . 5 . Grunt 8 | . 2 . . 2 4 Sentry 5 | . . . . 4 1 Best Kill Streak 4 | . 2 1 . 4 3 Combat Bots Only 4 | . 2 1 . 4 3 Max Kills in Single Turn 2 | . 1 1 . 2 1 Gunslinging 1 | . . . . 1 . Exploded 1 | . . . . . 1 Melee . | . . . . . . Uniques/NPCs Destroyed . | . . . . . . Combat | -11 -10 -10 -9 -9 -9 -------- Run | Yrd Mat Min Mat Sto Gar Hostile Shots Fired 231 | . 9 38 . 83 101 Missed 71 | . 3 10 . 28 30 Damage Taken 1813 | . 67 230 . 670 846 Core 482 | . 11 69 . 70 332 Absorbed by Shields . | . . . . . . Core Remaining (%) 84 | 100 . 68 . . . Volleys Fired 68 | . 5 13 1 34 15 Largest 2 | . 2 2 2 2 2 Hottest 96 | . 40 40 40 96 96 Shots Fired 119 | . 10 26 2 62 19 Gun 115 | . 10 26 2 62 15 Cannon . | . . . . . . Launcher 4 | . . . . . 4 Special . | . . . . . . Kinetic 93 | . 10 26 2 50 5 Thermal 22 | . . . . 12 10 Explosive 4 | . . . . . 4 Electromagnetic . | . . . . . . Robot Hit Streak 10 | . 7 3 3 10 4 Robot Miss Streak 4 | . 1 4 . 4 2 Penetration Max . | . . . . . . Secondary Targets 2 | . 1 . . 1 . Max Gunslinging Chain 1 | . 1 . . 1 . Shots Hit Robots 63 | . 8 6 2 38 9 Core Hits 38 | 1 4 4 1 18 10 Critical Kills . | . . . . . . Critical Parts Destroyed 1 | . . . . 1 . Critical Strikes 2 | . . . . 2 . Burn 1 | . . . . 1 . Destroy 1 | . . . . 1 . Melee Attacks . | . . . . . . Impact . | . . . . . . Slashing . | . . . . . . Piercing . | . . . . . . Sneak Attacks . | . . . . . . Combat Hostiles . | . . . . . . Follow-up Attacks . | . . . . . . Damage Inflicted 1160 | 2 99 84 25 502 448 Guns 835 | . 99 84 25 502 125 Cannons . | . . . . . . Explosions 323 | . . . . . 323 Melee . | . . . . . . Ramming 2 | 2 . . . . . Kinetic 637 | . 99 84 25 390 39 Thermal 198 | . . . . 112 86 Explosive 323 | . . . . . 323 Electromagnetic . | . . . . . . Impact . | . . . . . . Slashing . | . . . . . . Piercing . | . . . . . . Highest Corruption . | . . . . . . Average Corruption . | . . . . . . Corruption Purged . | . . . . . . Corruption Blocked . | . . . . . . Overload Shots . | . . . . . . Overflow Damage . | . . . . . . Projectiles . | . . . . . . Explosions . | . . . . . . Melee . | . . . . . . Knockbacks . | . . . . . . Impact . | . . . . . . Kinetic . | . . . . . . Secondary . | . . . . . . Self-Inflicted Damage . | . . . . . . Shots . | . . . . . . Rammed 1 | . . . . 1 . Targets Rammed 3 | 2 . . . 1 . Kicked 2 | 2 . . . . . Crushed . | . . . . . . Highest Temperature 72 | . . . . 42 72 Average Temperature 23 | . . . . 20 25 Received Heat Transfer 798 | . 36 . . 252 510 Siege Activations . | . . . . . . Robots Corrupted . | . . . . . . Combat Hostiles . | . . . . . . Parts Fried . | . . . . . . Impact Corruptions . | . . . . . . Robots Melted . | . . . . . . Combat Hostiles . | . . . . . . Parts Melted 2 | . . . . 2 . Heat Transferred 546 | . . . . 347 199 Parts Sabotaged . | . . . . . . Parts Stolen . | . . . . . . Parts Stripped . | . . . . . . Power Chain Reactions . | . . . . . . Alert | -11 -10 -10 -9 -9 -9 ------- Run | Yrd Mat Min Mat Sto Gar Peak Influence 318 | . 70 166 79 318 304 Initial 206 | . . 27 64 33 206 Average 128 | . 37 74 66 210 258 Maximum Alert Level 1 | . . . . 1 1 Low Security (%) 64 | 100 100 100 100 40 . Level 1 35 | . . . . 59 100 Level 2 . | . . . . . . Level 3 . | . . . . . . Level 4 . | . . . . . . Level 5 . | . . . . . . High Security . | . . . . . . Max Security . | . . . . . . Squads Dispatched 4 | . 2 . . 2 . Investigation . | . . . . . . Extermination . | . . . . . . Reinforcement 2 | . 2 . . . . Assault . | . . . . . . Garrison 2 | . . . . 2 . Intercept . | . . . . . . Searches Triggered . | . . . . . . Construction Impeded . | . . . . . . Haulers Reinforced . | . . . . . . Active Scanning Responses . | . . . . . . Cargo Convoy Interrupts . | . . . . . . Stealth | -11 -10 -10 -9 -9 -9 --------- Run | Yrd Mat Min Mat Sto Gar Distress Signals . | . . . . . . Communications Jammed . | . . . . . . Distress Signals . | . . . . . . Times Spotted 39 | . 7 6 1 15 10 Peak Tracking Total 7 | . 5 3 1 7 6 Tactical Retreats 2 | . . . . 2 . Traps | -11 -10 -10 -9 -9 -9 ------- Run | Yrd Mat Min Mat Sto Gar Traps Triggered 1 | . . . . . 1 Indirectly . | . . . . . . Trap Hack Attempts . | . . . . . . Triggered . | . . . . . . Disarmed . | . . . . . . Reprogrammed . | . . . . . . Reused . | . . . . . . Traps Extracted . | . . . . . . Installed . | . . . . . . Triggered . | . . . . . . Machines | -11 -10 -10 -9 -9 -9 ---------- Run | Yrd Mat Min Mat Sto Gar Machines Disabled . | . . . . . . Max in Single Turn . | . . . . . . Machines Repaired . | . . . . . . Machines Dismantled . | . . . . . . Machines Sabotaged . | . . . . . . Overloaded Fab Kills . | . . . . . . Hacking | -11 -10 -10 -9 -9 -9 --------- Run | Yrd Mat Min Mat Sto Gar Machines Accessed 4 | . 2 . . 2 . Terminals 2 | . 1 . . 1 . Fabricators . | . . . . . . Repair Stations . | . . . . . . Recycling Units 1 | . 1 . . . . Scanalyzers . | . . . . . . Garrison Access 1 | . . . . 1 . Total Hacks 12 | . 6 . . 6 . Successful 8 | . 4 . . 4 . Failed 4 | . 2 . . 2 . Catastrophic 1 | . 1 . . . . Database Lockouts . | . . . . . . Manual . | . . . . . . Terminals 5 | . 2 . . 3 . Fabricators . | . . . . . . Repair Stations . | . . . . . . Recycling Units 4 | . 4 . . . . Scanalyzers . | . . . . . . Garrison Access 3 | . . . . 3 . Terminal Hacks 3 | . 1 . . 2 . Record 1 | . . . . 1 . Prototype ID Bank 1 | . . . . 1 . Zone Layout 1 | . 1 . . . . Fabricator Hacks . | . . . . . . Repair Station Hacks . | . . . . . . Recycling Unit Hacks 3 | . 3 . . . . Report Inventory 1 | . 1 . . . . Retrieve Matter 1 | . 1 . . . . Retrieve Components 1 | . 1 . . . . Scanalyzer . | . . . . . . Garrison Access Hacks 2 | . . . . 2 . Unlock Access 1 | . . . . 1 . Coupler Status 1 | . . . . 1 . Unauthorized Hacks . | . . . . . . Terminals . | . . . . . . Fabricators . | . . . . . . Repair Stations . | . . . . . . Recycling Units . | . . . . . . Scanalyzers . | . . . . . . Garrison Access . | . . . . . . Data Cores Recovered . | . . . . . . Used . | . . . . . . Hacking Detections 4 | . 2 . . 2 . Full Trace Events 2 | . 1 . . 1 . Feedback Events . | . . . . . . Feedback Blocked . | . . . . . . Robot Schematics Acquired . | . . . . . . Robots Built . | . . . . . . Authchips . | . . . . . . Time . | . . . . . . Total Robot Build Rating . | . . . . . . Part Schematics Acquired . | . . . . . . Parts Built . | . . . . . . Authchips . | . . . . . . Time . | . . . . . . Total Part Build Rating . | . . . . . . Parts Repaired . | . . . . . . Time . | . . . . . . Parts Recycled . | . . . . . . Recycled Matter . | . . . . . . Retrieved Matter . | . . . . . . Retrieved Components 1 | . 1 . . . . Parts Scanalyzed . | . . . . . . Part Schematics Acquired . | . . . . . . Parts Damaged . | . . . . . . Bothacking | -11 -10 -10 -9 -9 -9 ------------ Run | Yrd Mat Min Mat Sto Gar Used RIF Installer . | . . . . . . Robots Hacked . | . . . . . . Non-combat . | . . . . . . Combat . | . . . . . . Robot Hacks Applied . | . . . . . . Relay Couplers Released . | . . . . . . Fabnet Peak Effective % . | . . . . . . Robots Rewired . | . . . . . . Allies Hacked . | . . . . . . Hacks Repelled . | . . . . . . Allies | -11 -10 -10 -9 -9 -9 -------- Run | Yrd Mat Min Mat Sto Gar Total Allies 2 | . . 2 . . . Largest Group 2 | . . 2 2 2 . Highest-Rated Group 45 | . . 45 45 45 . Highest-Rated Ally 31 | . . 31 31 31 . Total Orders . | . . . . . . Ally Attacks 18 | . . 5 2 11 . Total Damage 189 | . . 64 21 104 . Kills 4 | . . 3 . 1 . Allies Corrupted . | . . . . . . Allies Melted . | . . . . . . Intel | -11 -10 -10 -9 -9 -9 ------- Run | Yrd Mat Min Mat Sto Gar Robot Analysis Total . | . . . . . . Derelict Logs Recovered 1 | . . 1 . . . Drone Launches . | . . . . . . Drone Recoveries . | . . . . . . Exploration | -11 -10 -10 -9 -9 -9 ------------- Run | Yrd Mat Min Mat Sto Gar Turns Passed 1099 | 136 272 148 19 336 188 Spaces Moved 609 | 119 206 90 14 145 35 Core 65 | 30 . . . 13 22 Treads . | . . . . . . Legs 544 | 89 206 90 14 132 13 Wheels . | . . . . . . Hover . | . . . . . . Flight . | . . . . . . Fastest Speed 50 | 50 120 120 120 120 330 Average Speed 143 | 102 120 120 120 157 438 Slowest Speed 550 | 120 120 120 120 500 550 Overloaded Moves . | . . . . . . Propulsion Burnouts . | . . . . . . Robots Hopped . | . . . . . . Cave-ins Triggered . | . . . . . . Exploration Rate (%) 16 | 7 42 24 4 16 8 Regions Visited 5 Branch Regions 2 Pre-discovered Areas 1 | . . 1 . . . Known Exits Taken 1 | . . . . 1 . Unknown Exits Taken 4 | 1 1 1 1 . . Scrap Searched 1 | . . 1 . . . Spaces Dug . | . . . . . . Terrain Destroyed 21 | . . . . . 21 Melee . | . . . . . . Projectile . | . . . . . . AOE 21 | . . . . . 21 Terrain Rammed . | . . . . . . Walls Destroyed . | . . . . . . Machines Disabled . | . . . . . . Actions | -11 -10 -10 -9 -9 -9 --------- Run | Yrd Mat Min Mat Sto Gar Total 719 | 133 221 104 14 191 56 Wait . | . . . . . . Move 604 | 118 205 89 13 144 35 Hop . | . . . . . . Pick Up 20 | 8 7 1 . 4 . Fast Attach . | . . . . . . Attach 18 | 5 3 . . 5 5 Detach . | . . . . . . Swap 2 | . . . . 2 . Drop 4 | . 1 1 . 1 1 Fire 68 | . 5 13 1 34 15 Melee . | . . . . . . Ram 1 | . . . . 1 . Kick 2 | 2 . . . . . Crush . | . . . . . . Escape Stasis . | . . . . . . Rewire . | . . . . . . Trap . | . . . . . . Miscellaneous . | . . . . . . Route ------- -11/Scrapyard -10/Materials -10/Mines -9/Materials -9/Storage -9/Garrison History --------- Turn | Location | Event 12 | -11/Scrapyard | Discovered new exit (range 15) 137 | -11/Scrapyard | Entered Materials 316 | -10/Materials | Build established: Mutant 368 | -10/Materials | Discovered new exit (range 13) 409 | -10/Materials | Entered Mines 520 | -10/Mines | Discovered new exit (range 15) 557 | -10/Mines | Entered Materials 557 | -9/Materials | Accompanied by 2 allies 557 | -9/Materials | Evolved 2 slots: Propulsion x1, Utility x1 557 | -9/Materials | Discovered new exit (range 7) 562 | -9/Materials | Led the pair of lost Derelicts to an unsafe place 576 | -9/Materials | Entered Storage 576 | -9/Storage | Accompanied by 2 allies 728 | -9/Storage | Garrison activated, responded to threat 864 | -9/Storage | Lost 6 parts (3n1u2w) 867 | -9/Storage | Identified exit to Garrison 912 | -9/Storage | Entered Garrison 1024 | -9/Garrison | Core integrity fell below 50% 1089 | -9/Garrison | Core integrity fell below 20% 1100 | -9/Garrison | Destroyed by G-34 Mercenary with Small Laser Last Messages --------------- Y-45 Defender destroyed. ALERT: Dispatching investigation squad to Recycling. Critical hit (Burn: +37). Sml. Laser destroyed. Beam Rifle destroyed. G-47 Trooper destroyed. G-34 Mercenary destroyed. Dropped Grenade Launcher. The unstable cave ceiling collapses. Triggered Alarm Trap. An alarm sounds. G-34 Mercenary springs to life. Sealed Heavy Doors activated. Sml. Laser destroyed. Aluminum Leg destroyed. The unstable cave ceiling collapses. G-34 Mercenary destroyed. Lgt. Assault Rifle destroyed. Acquired 7 matter. Map ----- +----------------------------------------------------+ | ?????????????????????????????????????????????????? | | ?????????????????????????????????????????????????? | | ?????????????????????????????????????????????????? | | ?????????????????????????????????????????????????? | | ?????????????????????????????????????????????????? | | ??????????????????????#######????????????????????? | | ??????????????????????# [##???????????????????? | | ??????????????????????# *!%#???????????????????? | | ??????????????????????# !##???????????????????? | | ??????????????????????### #????????????????????? | | ????????????????????????# #????????????????????? | | ????????????????????????# #????????????????????? | | ????????????????????????# #????????????????????? | | ????????????????????????# #????????????????????? | | ????????????????????????# #????????????????????? | | ????????????????????????# ] #????????????????????? | | ??????????????####????### #????????????????????? | | ??????????????#!!!!#### +^ #????????????????????? | | ??????????????# + ^#????????????????????? | | ????????????????? + ^ #????????????????????? | | ??????????????????????# + = #????????????????????? | | ??????????????????????###g%g##?????#?????????????? | | ??????????????????????# = #?? #?????????????? | | ??????????????????????# ## #?????????????? | | ??????????????????????# g #?????????????? | | ??????????????????????# #@[g # #?????????????? | | ??????????????????????# !% ##?????????????????? | | ??????????????????????# # #??????????????????? | | ??????????????????????### # #??????????????????? | | ????????????????????????# ###??????????????????? | | ????????????????????????# #????????????????????? | | ????????????????????????# #????????????????????? | | ????????????????????????# #????????????????????? | | ???????????????????????? ????????????????????? | | ????????????????????????# #????????????????????? | | ????????????????????????? #????????????????????? | | ????????????????????????? #????????????????????? | | ????????????????????????? #????????????????????? | | ????????????????????????? #????????????????????? | | ????????????????????????? #????????????????????? | | ????????????????????????? ?????????????????????? | | ?????????????????????????????????????????????????? | | ?????????????????????????????????????????????????? | | ?????????????????????????????????????????????????? | | ?????????????????????????????????????????????????? | | ?????????????????????????????????????????????????? | | ?????????????????????????????????????????????????? | | ?????????????????????????????????????????????????? | | ?????????????????????????????????????????????????? | | ?????????????????????????????????????????????????? | +----------------------------------------------------+ Best States ------------- Heat Dissipation 38 Energy Generation 10 Energy Capacity 250 Matter Stores 300 Matter Capacity 300 Sight Range 16 Terrain Scan Density 10 Armor Coverage 150 Evasion (%) 55 Item Schematics ----------------- None Robot Schematics ------------------ None Fabricated ------------ Nothing Alien Tech Used ----------------- None Achievements -------------- Troublemaker Challenges ------------ None Game ------ Seed FireDisruptorPrototype Manual? 0 Play Time 00:15:20 Cumulative 0.9 hours Start 2024.04.23 @ 14:27:17 End 2024.04.23 @ 14:41:33 Sessions 1 Manual Loads 0 Difficulty Rogue Special Mode None Game No. 5 Rogue 5 Adventurer 0 Explorer 0 Win Type - Total 0 Types 0/0/0/0/0/0/0/0/0 Lore% 0 Gallery% 4 Achievement% 3 Wizard Run 0 Options --------- Layout 1 ASCII 0 Keyboard 0 Movement Arrows Keybinds 0 Fullscreen 1 Font 24/Cog Map View 50x35 Zoom Use 0% Tactical HUD 0 Map Filters NONE Filters BRIGHTNESS(80)|SATURATION(70) Steam 1 RUN: 97344f0e-e6e8-4e4d-a581-fe208a21460b